bitfinex/quotes_BTCUSD_20250723
["timestamp","ask_amount","ask_price","bid_price","bid_amount"]
[1753290091202,0.07705445,117970.0,117960.0,1.04713455]
[1753290092060,0.08553153,117970.0,117960.0,1.04713455]
[1753290092276,0.06010186,117970.0,117960.0,1.04713455]
[1753290092698,0.06010149,117970.0,117960.0,1.13161185]
[1753290092910,0.04314919,117970.0,117960.0,0.76481484]
[1753290093129,0.05162534,117970.0,117960.0,1.04713455]
[1753290093341,0.068578,117970.0,117960.0,0.68033754]
[1753290093573,0.06010156,117970.0,117960.0,1.04713455]
[1753290093781,0.06857793,117970.0,117960.0,1.04713455]
[1753290093983,0.08553102,117970.0,117960.0,1.04713455]
[1753290094189,0.06010156,117970.0,117960.0,1.04713455]
[1753290094413,0.03269356,117970.0,117960.0,1.44700616]
[1753290094628,0.05479594,117970.0,117960.0,1.04709463]
[1753290094856,0.06327238,117970.0,117960.0,0.91125463]
[1753290095071,0.07174903,117970.0,117960.0,1.0470947]
[1753290095275,0.07174903,117970.0,117960.0,1.05557164]
[1753290095490,0.07090136,117970.0,117960.0,1.05557164]
[1753290095726,0.05394812,117970.0,117960.0,1.05557164]
[1753290095924,0.04547197,117970.0,117960.0,1.05557164]
[1753290096127,0.05055685,117970.0,117960.0,0.91973164]
[1753290096335,0.05055685,117970.0,117960.0,1.05557164]
[1753290096553,0.04208077,117970.0,117960.0,1.14004894]
[1753290096806,0.05055685,117970.0,117960.0,1.14004894]
[1753290097261,0.06750951,117970.0,117960.0,1.14004894]
[1753290097474,0.06750944,117970.0,117960.0,1.14004894]
[1753290097693,0.06750944,117970.0,117960.0,1.05557164]
[1753290097905,0.05903307,117970.0,117960.0,1.05557164]
[1753290098778,0.07598588,117970.0,117960.0,1.05557164]
[1753290098991,0.06750937,117970.0,117960.0,1.05557164]
[1753290099200,0.07598581,117970.0,117960.0,1.05557164]
[1753290099409,0.06750937,117970.0,117960.0,1.05557164]
[1753290099634,0.05055685,117970.0,117960.0,1.05557164]
[1753290100049,0.04208077,117970.0,117960.0,1.14004894]
[1753290100254,0.04208077,117970.0,117960.0,1.05557164]
[1753290100471,0.00812488,117970.0,117960.0,1.05557164]
[1753290101313,0.02412488,117970.0,117960.0,1.05557164]
[1753290101527,0.0165,117980.0,117970.0,0.19496393]
[1753290101745,0.03254933,117980.0,117970.0,0.69756094]
[1753290101987,0.03558933,117980.0,117970.0,0.69756094]
[1753290102206,0.04617476,117980.0,117970.0,0.33076393]
[1753290102438,0.06312599,117980.0,117970.0,0.69756094]
[1753290102653,0.05465027,117980.0,117970.0,0.69756094]
[1753290102863,0.03869933,117980.0,117970.0,0.69756094]
[1753290103073,0.05565027,117980.0,117970.0,0.69756094]
[1753290103912,0.03869933,117980.0,117970.0,0.69756094]
[1753290104118,0.04717469,117980.0,117970.0,0.69756094]
[1753290104328,0.04817469,117980.0,117970.0,0.69756094]
[1753290104539,0.00204933,117980.0,117970.0,0.69756094]
[1753290105023,0.00508933,117980.0,117970.0,0.69756094]
[1753290105231,0.03668933,117980.0,117970.0,0.69756094]
[1753290105821,0.00408933,117980.0,117970.0,0.69756094]
[1753290106043,0.00408933,117980.0,117970.0,0.78303824]
[1753290106284,0.00104933,117980.0,117970.0,1.27514308]
[1753290106506,4.933e-05,117980.0,117970.0,1.27514308]
[1753290106932,4.933e-05,117980.0,117970.0,1.29024308]
[1753290107352,4.933e-05,117980.0,117970.0,1.30634308]
[1753290108248,0.0004,118000.0,117970.0,1.67314009]
[1753290108456,0.00044931,118000.0,117990.0,1.29972492]
[1753290108668,0.00044931,118000.0,117990.0,1.67206706]
[1753290109826,0.00044931,118000.0,117990.0,1.66930911]
[1753290110032,0.00144931,118000.0,117990.0,1.66930911]
[1753290110573,0.00244931,118000.0,117990.0,1.66930911]
[1753290111202,0.00144931,118000.0,117990.0,1.66930911]
[1753290111413,0.00044931,118000.0,117990.0,1.66930911]
[1753290112278,0.00544931,118000.0,117990.0,1.67030911]
[1753290112899,0.00844931,118000.0,117990.0,1.67030911]
[1753290113111,0.00844931,118000.0,117990.0,0.93671509]
[1753290113344,0.00844931,118000.0,117990.0,1.67030911]
[1753290114186,0.0004,118010.0,118000.0,0.53491437]
[1753290114391,0.0004,118010.0,118000.0,1.60923498]
[1753290115017,0.0004,118010.0,118000.0,1.61482298]
[1753290115407,0.0014,118010.0,118000.0,1.61482298]
[1753290115613,0.00055262,118010.0,118000.0,1.61482298]
[1753290117473,1e-08,118010.0,118000.0,1.61482298]
[1753290120378,1e-08,118010.0,118000.0,1.47395099]
[1753290120581,1e-08,118010.0,118000.0,1.21185398]
[1753290120794,1e-08,118010.0,118000.0,1.37487369]
[1753290120975,1e-08,118010.0,118000.0,1.51047369]
[1753290121393,1e-08,118010.0,118000.0,1.52637369]
[1753290123292,1e-08,118010.0,118000.0,1.49417369]
[1753290123505,1e-08,118010.0,118000.0,1.57865099]
[1753290123938,1e-08,118010.0,118000.0,1.61005099]
[1753290125482,1e-08,118010.0,118000.0,1.67750001]
[1753290125688,1e-08,118010.0,118000.0,1.310703]
[1753290126118,0.0004,118020.0,118010.0,0.19489786]
[1753290126333,0.00044931,118020.0,118010.0,0.49941246]
[1753290126981,0.00044931,118020.0,118010.0,0.86620947]
[1753290127419,0.00044931,118020.0,118010.0,0.49941246]
[1753290127628,0.00044931,118020.0,118010.0,0.73064947]
[1753290127837,0.00044931,118020.0,118010.0,0.86616947]
[1753290128049,0.03751931,118020.0,118010.0,0.64617217]
[1753290128262,0.03751931,118020.0,118010.0,0.78169217]
[1753290128544,0.03951931,118020.0,118010.0,0.78169217]
[1753290128753,0.03951931,118020.0,118010.0,0.86616947]
[1753290129632,0.03951931,118020.0,118010.0,0.89155753]
[1753290133561,0.03743931,118020.0,118010.0,0.89155753]
[1753290134694,0.00344931,118020.0,118010.0,0.89155753]
[1753290135777,0.01954931,118020.0,118010.0,0.89155753]
[1753290135993,0.03554931,118020.0,118010.0,0.89155753]
[1753290136211,0.03554931,118020.0,118010.0,0.52476052]
[1753290136212,0.03853931,118020.0,118010.0,0.52476052]
[1753290136434,0.04061931,118020.0,118010.0,0.30476322]
[1753290136662,0.04061931,118020.0,118010.0,0.78024322]
[1753290136887,0.0575645,118020.0,118010.0,0.35576592]
[1753290137125,0.23550087,118020.0,118010.0,0.30495716]
[1753290137352,0.22702817,118020.0,118010.0,0.30495716]
[1753290137564,0.05756443,118020.0,118010.0,0.33037779]
[1753290137780,0.07451005,118020.0,118010.0,0.6971748]
[1753290138004,0.05756443,118020.0,118010.0,0.6971748]
[1753290138223,0.04909194,118020.0,118010.0,0.6971748]
[1753290138449,0.04809194,118020.0,118010.0,0.5616948]
[1753290138674,0.04809187,118020.0,118010.0,0.6971748]
[1753290139156,0.05656457,118020.0,118010.0,0.33037779]
[1753290139386,0.06303742,118020.0,118010.0,0.6971748]
[1753290139647,0.04609187,118020.0,118010.0,0.6971748]
[1753290139845,0.03761931,118020.0,118010.0,0.7816521]
[1753290140727,0.03761931,118020.0,118010.0,0.41885509]
[1753290140932,0.0545645,118020.0,118010.0,0.33437779]
[1753290141154,0.0545645,118020.0,118010.0,0.7011748]
[1753290141583,0.07151027,118020.0,118010.0,0.7011748]
[1753290142012,0.07151013,118020.0,118010.0,0.7011748]
[1753290142229,0.0545645,118020.0,118010.0,0.7011748]
[1753290142657,0.06303728,118020.0,118010.0,0.7011748]
[1753290143084,0.0545645,118020.0,118010.0,0.7011748]
[1753290143299,0.06303728,118020.0,118010.0,0.72687954]
[1753290143997,0.0545645,118020.0,118010.0,0.72687954]
[1753290144211,0.04609187,118020.0,118010.0,0.73187954]
[1753290145275,0.03761931,118020.0,118010.0,0.73187954]
[1753290145490,0.0460918,118020.0,118010.0,0.73187954]
[1753290145917,0.03761931,118020.0,118010.0,0.73187954]
[1753290146189,0.0460918,118020.0,118010.0,0.73187954]
[1753290146699,0.03761931,118020.0,118010.0,0.73187954]
[1753290149964,0.00044931,118020.0,118010.0,1.15635684]
[1753290153299,0.03637931,118020.0,118010.0,0.78955983]
[1753290153521,0.03637931,118020.0,118010.0,1.24083414]
[1753290153963,0.03838931,118020.0,118010.0,1.24083414]
[1753290154179,0.03838931,118020.0,118010.0,1.02087684]
[1753290154387,0.03838931,118020.0,118010.0,1.15623684]
[1753290155027,0.03838931,118020.0,118010.0,1.02087684]
[1753290155232,0.03838931,118020.0,118010.0,1.07175954]
[1753290155443,0.04686194,118020.0,118010.0,1.07175954]
[1753290155657,0.03838931,118020.0,118010.0,1.07175954]
[1753290157419,0.03838931,118020.0,118010.0,1.15623684]
[1753290157682,0.03838931,118020.0,118010.0,0.93639954]
[1753290157912,0.03838931,118020.0,118010.0,1.07175954]
[1753290158400,0.0468618,118020.0,118010.0,1.07175954]
[1753290158652,0.03838931,118020.0,118010.0,1.07175954]
[1753290163166,0.03314931,118020.0,118010.0,1.15623684]
[1753290163640,0.03314931,118020.0,118010.0,1.24071414]
[1753290163884,0.03637931,118020.0,118010.0,1.24067414]
[1753290164091,0.03838931,118020.0,118010.0,1.15619684]
[1753290164370,0.03838931,118020.0,118010.0,1.15615684]
[1753290164600,0.03838931,118020.0,118010.0,0.78935983]
[1753290164861,0.03838931,118020.0,118010.0,1.15615684]
[1753290165103,0.03838931,118020.0,118010.0,0.78935983]
[1753290165344,0.03838931,118020.0,118010.0,1.15615684]
[1753290165590,0.04686194,118020.0,118010.0,1.07167954]
[1753290165837,0.07228055,118020.0,118010.0,0.70488253]
[1753290166086,0.25748353,118020.0,118010.0,0.17847716]
[1753290166316,0.24901083,118020.0,118010.0,0.31375716]
[1753290166603,0.2163251,118020.0,118010.0,0.14428]
[1753290166831,0.2163251,118020.0,118010.0,0.33917829]
[1753290167043,0.23327094,118020.0,118010.0,0.3561252]
[1753290167253,0.06380757,118020.0,118010.0,0.35612477]
[1753290167897,0.06380764,118020.0,118010.0,0.35612477]
[1753290168318,0.05533465,118020.0,118010.0,0.72292178]
[1753290168530,0.06380728,118020.0,118010.0,0.72292178]
[1753290168817,0.0553345,118020.0,118010.0,0.72292178]
[1753290169151,0.04686187,118020.0,118010.0,0.72292178]
[1753290169569,0.05533457,118020.0,118010.0,0.72292178]
[1753290169782,0.06380749,118020.0,118010.0,0.72292178]
[1753290169993,0.07492833,118020.0,118010.0,0.72292178]
[1753290170202,0.07492833,118020.0,118010.0,0.35364477]
[1753290170419,0.14025332,118020.0,118010.0,0.35364477]
[1753290170634,0.14872638,118020.0,118010.0,0.35364477]
[1753290170845,0.30971662,118020.0,118010.0,0.19294451]
[1753290171078,0.29859607,118020.0,118010.0,0.31971087]
[1753290171494,0.23327108,118020.0,118010.0,0.19294451]
[1753290171703,0.21632517,118020.0,118010.0,0.31971101]
[1753290171914,0.21632517,118020.0,118010.0,0.32818479]
[1753290172545,0.72733814,118020.0,118010.0,0.00652]
[1753290172805,0.81181544,118020.0,118010.0,0.00652]
[1753290172985,0.89629274,118020.0,118010.0,0.00652]
[1753290173413,0.89629274,118020.0,118010.0,0.00152]
[1753290173841,0.89629274,118020.0,118010.0,0.00452]
[1753290174105,1.04629274,118020.0,118010.0,0.00452]
[1753290174322,1.19629274,118020.0,118010.0,0.00452]
[1753290174978,1.53629274,118020.0,118010.0,0.00452]
[1753290175182,1.53629274,118020.0,118010.0,0.00152]
[1753290175407,0.21914016,118000.0,117990.0,0.06762754]
[1753290175635,0.27501317,118000.0,117990.0,0.06762754]
[1753290175851,0.27796317,118000.0,117990.0,0.06762754]
[1753290177324,0.8819265,118000.0,117990.0,0.06762754]
[1753290177524,0.8819265,118000.0,117990.0,0.07162754]
[1753290178176,0.8819265,118000.0,117990.0,0.004]
[1753290179050,1.1819265,118000.0,117990.0,0.004]
[1753290179273,1.1819265,118000.0,117990.0,0.006]
[1753290179724,1.1819265,118000.0,117990.0,0.004]
[1753290180558,1.1819265,118000.0,117990.0,0.005]
[1753290180999,0.32602648,118000.0,117990.0,0.005]
[1753290181202,0.46122648,118000.0,117990.0,0.25060858]
[1753290181405,0.72602648,118000.0,117990.0,0.25908358]
[1753290181632,1.22802349,118000.0,117990.0,0.005]
[1753290181876,0.01695424,117960.0,117950.0,0.60261221]
[1753290182112,0.01695424,117960.0,117950.0,0.38933426]
[1753290182113,0.23981747,117960.0,117950.0,0.38933426]
[1753290182320,0.23134067,117960.0,117950.0,0.75613127]
[1753290182530,0.05331424,117960.0,117950.0,0.77308673]
[1753290182741,0.22286323,117960.0,117950.0,0.76460907]
[1753290182980,0.2313406,117960.0,117950.0,0.39033426]
[1753290183204,0.2313406,117960.0,117950.0,0.76610271]
[1753290183411,0.23134067,117960.0,117950.0,0.57011811]
[1753290183840,0.26295119,117960.0,117950.0,0.0711211]
[1753290184059,0.6297482,117960.0,117950.0,0.00349356]
[1753290184290,0.63538306,117960.0,117950.0,0.00349356]
[1753290184501,0.26858605,117960.0,117950.0,0.00349356]
[1753290185783,0.26858605,117960.0,117950.0,0.00749356]
[1753290186624,0.22849852,117960.0,117950.0,0.18553509]
[1753290186859,0.22849852,117960.0,117950.0,0.19001318]
[1753290187063,0.22849852,117960.0,117950.0,0.19849106]
[1753290187300,0.22002129,117960.0,117950.0,0.18701318]
[1753290187514,0.22002129,117960.0,117950.0,0.17853509]
[1753290187718,0.30449859,117960.0,117950.0,0.19101311]
[1753290187929,0.04199486,117960.0,117950.0,0.20796879]
[1753290188166,0.00563486,117960.0,117950.0,0.650871]
[1753290188407,0.0159,117970.0,117960.0,0.19498046]
[1753290188622,0.04825259,117970.0,117960.0,0.69897747]
[1753290188826,0.04825252,117970.0,117960.0,0.69897747]
[1753290189035,0.06520561,117970.0,117960.0,0.69050053]
[1753290189240,0.05026252,117970.0,117960.0,0.70745448]
[1753290189465,0.05873896,117970.0,117960.0,0.70745448]
[1753290189706,0.05595979,117970.0,117960.0,0.70745448]
[1753290191440,0.07291259,117970.0,117960.0,0.70845448]
[1753290191845,0.24244721,117970.0,117960.0,0.69997754]
[1753290192080,0.24539771,117970.0,117960.0,0.69997754]
[1753290192289,0.23692149,117970.0,117960.0,0.68302337]
[1753290192498,0.23692149,117970.0,117960.0,0.68950067]
[1753290192704,0.22844505,117970.0,117960.0,0.69050067]
[1753290192919,0.26824168,117970.0,117960.0,0.69050067]
[1753290193373,0.26824168,117970.0,117960.0,0.6989779]
[1753290193579,0.09023027,117970.0,117960.0,0.70745491]
[1753290193793,0.06738616,117970.0,117960.0,0.35113484]
[1753290194028,0.06738616,117970.0,117960.0,0.71793185]
[1753290194226,0.05890972,117970.0,117960.0,0.71793185]
[1753290194637,0.06738623,117970.0,117960.0,0.71793185]
[1753290194848,0.05890972,117970.0,117960.0,0.71793185]
[1753290196246,0.06738616,117970.0,117960.0,0.71793185]
[1753290196549,0.05890972,117970.0,117960.0,0.71793185]
[1753290196757,0.05890964,117970.0,117960.0,0.71793185]
[1753290196892,0.03900734,117970.0,117960.0,0.71793185]
[1753290197743,0.04748342,117970.0,117960.0,0.71793185]
[1753290198060,0.03900734,117970.0,117960.0,0.71793185]
[1753290198487,0.04748342,117970.0,117960.0,0.71793185]
[1753290198690,0.03900734,117970.0,117960.0,0.71793185]
[1753290198900,0.06443637,117970.0,117960.0,0.71793185]
[1753290199048,0.05890986,117970.0,117960.0,0.71793185]
[1753290199254,0.05043349,117970.0,117960.0,0.71793185]
[1753290199841,0.03699734,117970.0,117960.0,0.71793185]
[1753290200038,0.04547342,117970.0,117960.0,0.71793185]
[1753290200481,0.06242623,117970.0,117960.0,0.35113484]
[1753290200695,0.05394972,117970.0,117960.0,0.71793185]
[1753290200900,0.04547342,117970.0,117960.0,0.71793185]
[1753290201106,0.06242608,117970.0,117960.0,0.71793185]
[1753290201311,0.04748342,117970.0,117960.0,0.71793185]
[1753290201561,0.03900734,117970.0,117960.0,0.71793185]
[1753290201745,0.00569734,117970.0,117960.0,0.71793185]
[1753290201924,0.0157,117990.0,117980.0,0.19494742]
[1753290202291,0.05762428,117990.0,117980.0,0.69890443]
[1753290202476,0.04914935,117990.0,117980.0,0.69890443]
[1753290202681,0.04914935,117990.0,117980.0,0.56374443]
[1753290202859,0.06405461,117990.0,117980.0,0.69890443]
[1753290203078,0.0810049,117990.0,117980.0,0.69890443]
[1753290203285,0.0859649,117990.0,117980.0,0.69890443]
[1753290203697,0.07748968,117990.0,117980.0,0.69990443]
[1753290203907,0.08596483,117990.0,117980.0,0.33310742]
[1753290204122,0.08596541,117990.0,117980.0,0.33310742]
[1753290204327,0.08596541,117990.0,117980.0,0.69990443]
[1753290204782,0.07749019,117990.0,117980.0,0.69990443]
[1753290204932,0.07749019,117990.0,117980.0,0.70090443]
[1753290205170,0.07749019,117990.0,117980.0,0.56574443]
[1753290205343,0.08596541,117990.0,117980.0,0.70090443]
[1753290206011,0.06901497,117990.0,117980.0,0.70090443]
[1753290206214,0.07749012,117990.0,117980.0,0.70090443]
[1753290206457,0.06901497,117990.0,117980.0,0.70090443]
[1753290206705,0.04911504,117990.0,117980.0,0.70090443]
[1753290206906,0.0575899,117990.0,117980.0,0.70090443]
[1753290207054,0.0640549,117990.0,117980.0,0.70090443]
[1753290207251,0.04710504,117990.0,117980.0,0.70090443]
[1753290207460,0.05557983,117990.0,117980.0,0.70090443]
[1753290207914,0.0386304,117990.0,117980.0,0.70090443]
[1753290208119,0.0640549,117990.0,117980.0,0.70090443]
[1753290208324,0.0233799,117990.0,117980.0,0.70090443]
[1753290208720,0.0557799,117990.0,117980.0,0.70090443]
[1753290209147,0.07272976,117990.0,117980.0,0.70090443]
[1753290209576,0.08120491,117990.0,117980.0,0.70090443]
[1753290209791,0.08321491,117990.0,117980.0,0.33406742]
[1753290209941,0.08614491,117990.0,117980.0,0.70086443]
[1753290210147,0.08614483,117990.0,117980.0,0.70086443]
[1753290210348,0.08614527,117990.0,117980.0,0.70086443]
[1753290210552,0.25565166,117990.0,117980.0,0.70086443]
[1753290210735,0.34012896,117990.0,117980.0,0.33406742]
[1753290210960,0.3231791,117990.0,117980.0,0.69038899]
[1753290211165,0.3231791,117990.0,117980.0,0.69886457]
[1753290211343,0.3231791,117990.0,117980.0,0.69038899]
[1753290211551,0.3231791,117990.0,117980.0,0.32359198]
[1753290211745,0.3231791,117990.0,117980.0,0.1969477]
[1753290211939,0.3231791,117990.0,117980.0,0.69886471]
[1753290212183,0.3231791,117990.0,117980.0,0.71581594]
[1753290212840,0.2387018,117990.0,117980.0,0.70734]
[1753290213041,0.06919591,117990.0,117980.0,0.70734]
[1753290213252,0.2387018,117990.0,117980.0,0.70734]
[1753290213657,0.2387018,117990.0,117980.0,0.69886442]
[1753290213856,0.2387018,117990.0,117980.0,0.33206777]
[1753290214212,0.31952122,117990.0,117980.0,0.70734036]
[1753290214859,0.15001533,117990.0,117980.0,0.71581587]
[1753290215068,0.06072062,117990.0,117980.0,0.71581587]
[1753290215275,0.06072062,117990.0,117980.0,0.71577587]
[1753290215474,0.06072062,117990.0,117980.0,0.58069587]
[1753290215701,0.06072062,117990.0,117980.0,0.71577587]
[1753290216323,0.06919548,117990.0,117980.0,0.34897886]
[1753290216524,0.06919548,117990.0,117980.0,0.58069587]
[1753290216731,0.06919548,117990.0,117980.0,0.71577587]
[1753290216933,0.06919483,117990.0,117980.0,0.34897886]
[1753290217138,0.0607199,117990.0,117980.0,0.71787587]
[1753290217391,0.0691949,117990.0,117980.0,0.71787587]
[1753290219161,0.24717594,117990.0,117980.0,0.69882478]
[1753290219358,0.32969087,117990.0,117980.0,0.69882478]
[1753290219561,0.32969087,117990.0,117980.0,0.70730043]
[1753290219854,0.32969087,117990.0,117980.0,0.71577551]
[1753290220064,0.32969087,117990.0,117980.0,0.58069551]
[1753290220267,0.24717659,117990.0,117980.0,0.33202741]
[1753290220584,0.23870173,117990.0,117980.0,0.69882471]
[1753290220979,0.21327629,117990.0,117980.0,0.36879701]
[1753290221150,0.59752232,117990.0,117980.0,0.002]
[1753290221354,1.05155692,117990.0,117980.0,0.002]
[1753290221977,1.45155692,117990.0,117980.0,0.002]
[1753290222558,0.18648757,117970.0,117960.0,0.31310534]
[1753290222813,0.22119757,117970.0,117960.0,0.13508]
[1753290223000,0.22412757,117970.0,117960.0,0.13508]
[1753290223215,0.2192033,117960.0,117950.0,0.25464051]
[1753290223354,0.22121373,117960.0,117950.0,0.75861752]
[1753290223621,0.22121373,117960.0,117950.0,0.75013957]
[1753290223622,0.22414373,117960.0,117950.0,0.75013957]
[1753290223770,0.05459439,117960.0,117950.0,0.76709525]
[1753290223970,0.06307119,117960.0,117950.0,0.77557291]
[1753290224179,0.06861849,117960.0,117950.0,0.4087759]
[1753290224382,0.27075323,117960.0,117950.0,0.40029831]
[1753290224585,0.27075323,117960.0,117950.0,0.76709532]
[1753290224799,0.07577227,117960.0,117950.0,0.77557305]
[1753290225000,0.04117687,117960.0,117950.0,0.78405071]
[1753290225207,0.03315388,117960.0,117950.0,0.78405071]
[1753290225422,0.05010834,117960.0,117950.0,0.78405071]
[1753290225625,0.04163104,117960.0,117950.0,0.78405071]
[1753290225843,0.03315388,117960.0,117950.0,0.78705071]
[1753290226091,0.03315388,117960.0,117950.0,0.79005071]
[1753290226705,0.02467687,117960.0,117950.0,0.4232537]
[1753290226911,0.02467687,117960.0,117950.0,0.79005071]
[1753290227425,0.03315388,117960.0,117950.0,0.79005071]
[1753290227641,0.0817082,117960.0,117950.0,0.72242317]
[1753290227881,0.05783104,117960.0,117950.0,0.72242317]
[1753290228415,0.2358574,117960.0,117950.0,0.58734317]
[1753290228658,0.24079797,117960.0,117950.0,0.55828187]
[1753290228866,0.23232096,117960.0,117950.0,0.69122187]
[1753290229094,0.21536643,117960.0,117950.0,0.14104]
[1753290229307,0.72427532,117960.0,117950.0,0.006]
[1753290229725,0.35747831,117960.0,117950.0,0.006]
[1753290229953,0.35747831,117960.0,117950.0,0.003]
[1753290230170,0.21751934,117950.0,117940.0,0.30461775]
[1753290230373,0.03594,117950.0,117940.0,0.33010285]
[1753290230609,0.07250035,117950.0,117940.0,0.69689986]
[1753290231255,0.24206429,117950.0,117940.0,0.33010299]
[1753290231493,0.06985143,117950.0,117940.0,0.70537838]
[1753290231723,0.03594,117950.0,117940.0,0.70537838]
[1753290232170,0.04441766,117950.0,117940.0,0.70837838]
[1753290232371,0.04441759,117950.0,117940.0,0.71137838]
[1753290232588,0.04441766,117950.0,117940.0,0.71347838]
[1753290233019,0.05289539,117950.0,117940.0,0.71347838]
[1753290233242,0.4114068,117960.0,117940.0,0.68804245]
[1753290233438,0.0328,117960.0,117950.0,0.56179401]
[1753290233652,0.0328,117960.0,117950.0,0.56691401]
[1753290233859,0.04420622,117970.0,117960.0,0.19498046]
[1753290234074,0.05469266,117970.0,117960.0,0.69965747]
[1753290234278,0.06316924,117970.0,117960.0,0.69965747]
[1753290234898,0.04380558,117980.0,117970.0,0.19496393]
[1753290235159,0.04935087,117980.0,117970.0,0.56386094]
[1753290235378,0.0324,117980.0,117970.0,0.56386094]
[1753290235587,0.04730331,117990.0,117980.0,0.19494742]
[1753290235805,0.04172271,118000.0,117990.0,0.1949309]
[1753290236007,0.05216714,118000.0,117990.0,0.56377805]
[1753290236248,0.06357164,118000.0,117990.0,0.57225291]
[1753290236448,0.06357214,118000.0,117990.0,0.57225291]
[1753290236660,0.22773087,118000.0,117990.0,0.55325312]
[1753290236870,0.22508257,118000.0,117990.0,0.55325312]
[1753290237281,0.22508257,118000.0,117990.0,0.56172805]
[1753290237491,0.03864198,118000.0,117990.0,0.57020284]
[1753290237700,0.03864198,118000.0,117990.0,0.56172805]
[1753290237904,0.03864198,118000.0,117990.0,0.57020291]
[1753290238119,0.03864198,118000.0,117990.0,0.5786777]
[1753290238325,0.04811648,118000.0,117990.0,0.5786777]
[1753290238547,0.237608,118000.0,117990.0,0.57020291]
[1753290238758,0.06599658,118000.0,117990.0,0.57020291]
[1753290239004,0.06599629,118000.0,117990.0,0.5786777]
[1753290239830,0.07447072,118000.0,117990.0,0.5786777]
[1753290240068,0.24661054,118000.0,117990.0,0.18645611]
[1753290240277,0.24396224,118000.0,117990.0,0.55325312]
[1753290241122,0.07153999,118000.0,117990.0,0.57225284]
[1753290241342,0.42814779,118000.0,117990.0,0.65992014]
[1753290241554,0.42814779,118000.0,117990.0,1.12514469]
[1753290241555,0.01184779,118000.0,117990.0,1.12514469]
[1753290241765,0.01184779,118000.0,117990.0,0.39155067]
[1753290241969,0.01184779,118000.0,117990.0,0.65847038]
[1753290242182,0.01184779,118000.0,117990.0,0.64307038]
[1753290242392,0.00684779,118000.0,117990.0,0.64307038]
[1753290242604,0.00684779,118000.0,117990.0,0.64407038]
[1753290243078,0.00684779,118000.0,117990.0,0.64307038]
[1753290243287,0.00684779,118000.0,117990.0,0.76084768]
[1753290243502,0.00684779,118000.0,117990.0,0.76284768]
[1753290244142,0.00684779,118000.0,117990.0,0.67837038]
[1753290246137,0.00684779,118000.0,117990.0,0.76284768]
[1753290246611,0.00049319,118000.0,117990.0,1.46964469]
[1753290247504,0.00049319,118000.0,117990.0,1.03522014]
[1753290247992,0.00049319,118000.0,117990.0,1.17310014]
[1753290248908,0.00049319,118000.0,117990.0,1.03522014]
[1753290249148,0.00896719,118000.0,117990.0,1.14188014]
[1753290249392,0.00896726,118000.0,117990.0,1.14188014]
[1753290249886,0.26326523,118000.0,117990.0,0.67898119]
[1753290250127,0.25479116,118000.0,117990.0,0.31998118]
[1753290250352,0.25479116,118000.0,117990.0,0.70372856]
[1753290250765,0.08529957,118000.0,117990.0,0.71220363]
[1753290250966,0.08529957,118000.0,117990.0,0.71867806]
[1753290250967,0.05598955,118000.0,117990.0,0.71867806]
[1753290251203,0.03639319,118000.0,117990.0,0.71667806]
[1753290251445,0.00049319,118000.0,117990.0,1.08871507]
[1753290251687,0.00049319,118000.0,117990.0,1.20529237]
[1753290252165,0.00049319,118000.0,117990.0,0.83849536]
[1753290252406,0.00049319,118000.0,117990.0,1.20529237]
[1753290253391,0.00049319,118000.0,117990.0,0.82888224]
[1753290254322,0.00049319,118000.0,117990.0,0.47169835]
[1753290254549,0.00049319,118000.0,117990.0,0.82888224]
[1753290256668,0.00049319,118000.0,117990.0,1.16888224]
[1753290257818,0.00049319,118000.0,117990.0,1.52606613]
[1753290258050,0.00049319,118000.0,117990.0,1.16888224]
[1753290258541,0.00049319,118000.0,117990.0,1.25235954]
[1753290258771,0.3004,118020.0,118010.0,0.19489786]
[1753290258988,0.30044931,118020.0,118010.0,0.80846905]
[1753290259230,0.00044931,118020.0,118010.0,0.81165905]
[1753290261580,0.00044931,118020.0,118010.0,0.81465905]
[1753290261802,0.00044931,118020.0,118010.0,0.89913635]
[1753290262538,0.00044931,118020.0,118010.0,0.54195246]
[1753290262756,0.00044931,118020.0,118010.0,0.89913635]
[1753290268232,0.00044931,118020.0,118010.0,0.96676389]
[1753290268915,0.00044931,118020.0,118010.0,0.89913635]
[1753290269194,0.00044931,118020.0,118010.0,0.89713635]
[1753290269408,0.00044931,118020.0,118010.0,0.40179246]
[1753290269642,0.00544931,118020.0,118010.0,0.79707905]
[1753290269873,0.00544931,118020.0,118010.0,0.81147905]
[1753290270102,0.00644931,118020.0,118010.0,0.81147905]
[1753290270559,0.00544931,118020.0,118010.0,0.81147905]
[1753290270756,0.00544931,118020.0,118010.0,0.89595635]
[1753290270968,0.00944931,118020.0,118010.0,0.89595635]
[1753290275365,0.00944931,118020.0,118010.0,0.90433962]
[1753290276066,0.00944931,118020.0,118010.0,0.53877246]
[1753290276278,0.00944931,118020.0,118010.0,0.90433962]
[1753290276531,0.00944931,118020.0,118010.0,1.24433962]
[1753290276753,1e-08,118020.0,118010.0,1.60990678]
[1753290277982,1e-08,118020.0,118010.0,0.28142516]
[1753290278230,0.0447325,118020.0,118010.0,0.78298217]
[1753290278441,0.06167812,118020.0,118010.0,0.50360716]
[1753290278672,0.06167812,118020.0,118010.0,0.13804]
[1753290278673,0.23378942,118020.0,118010.0,0.13804]
[1753290278909,0.20995101,118010.0,118000.0,0.50376716]
[1753290279123,0.20995101,118010.0,117970.0,0.18648728]
[1753290279124,0.0487495,117990.0,117970.0,0.18648728]
[1753290279364,0.19965626,117980.0,117970.0,0.0844773]
[1753290279571,0.19451135,117970.0,117960.0,0.50388716]
[1753290279784,0.19452593,117960.0,117950.0,0.33014637]
[1753290280007,0.22038302,117960.0,117950.0,0.58852446]
[1753290280240,0.21498593,117960.0,117950.0,0.77504387]
[1753290280462,0.03696,117960.0,117950.0,0.80047721]
[1753290280688,0.0454368,117960.0,117950.0,0.80047721]
[1753290280906,0.01738,117960.0,117950.0,0.8875177]
[1753290281336,0.01738,117960.0,117950.0,0.87937843]
[1753290281337,0.0153,117960.0,117950.0,0.87937843]
[1753290282089,0.00308,117970.0,117960.0,0.19498046]
[1753290282307,0.202687,117970.0,117960.0,0.7777158]
[1753290282523,0.20929937,117970.0,117960.0,0.7777158]
[1753290282767,0.20290307,117970.0,117960.0,0.7777158]
[1753290282978,0.20290307,117970.0,117960.0,0.78619274]
[1753290283207,0.1962907,117970.0,117960.0,0.7777158]
[1753290283453,0.1962907,117970.0,117960.0,0.78619274]
[1753290283670,0.01828,117970.0,117960.0,0.87067004]
[1753290283897,0.21277638,117980.0,117970.0,0.18648771]
[1753290284128,0.24712124,117980.0,117970.0,0.68263574]
[1753290284361,0.23864545,117980.0,117970.0,0.68263574]
[1753290284563,0.23864545,117980.0,117970.0,0.69111225]
[1753290284843,0.23864545,117980.0,117970.0,0.69111218]
[1753290285071,0.23016994,117980.0,117970.0,0.69111218]
[1753290285311,0.23116994,117980.0,117970.0,0.69611225]
[1753290285552,0.23964566,117980.0,117970.0,0.68763574]
[1753290285811,0.23116987,117980.0,117970.0,0.78258941]